{"text_format":"3","workbook":"xlsx","n_sheets":2,"sheets":["Výdaje","Kategorie"],"not_rendered":{"defined_names":5},"read":"whole","date_system":"1900"}

{"sheet":"Výdaje","index":0,"n_rows":25,"n_cols":7,"rows_kept":25,"merged":[[0,1,0,5],[1,1,1,5]]}
[null,"ROZPOČET VÝDAJŮ",{"$nulls":4},{"$f":"TODAY()","v":{"v":44575,"d":"4457500.00%"}}]
[null,"Název společnosti"]
[null,"Výdaj","Kategorie","Rozpočet","Skutečnost","Rozdíl (Kč)","Rozdíl (%)"]
[null,"Reklama","Provozní",null,null,{"$f":"IFERROR(SUM(Výdaje[[#This Row],[Rozpočet]]-Výdaje[[#This Row],[Skutečnost]]), \"\")","v":0},{"$f":"IFERROR(SUM(Výdaje[[#This Row],[Rozdíl (Kč)]]/Výdaje[[#This Row],[Rozpočet]]),\"\")","v":""}]
[null,"Pohledávky","Provozní",null,null,{"$f":"IFERROR(SUM(Výdaje[[#This Row],[Rozpočet]]-Výdaje[[#This Row],[Skutečnost]]), \"\")","v":0},{"$f":"IFERROR(SUM(Výdaje[[#This Row],[Rozdíl (Kč)]]/Výdaje[[#This Row],[Rozpočet]]),\"\")","v":""}]
[null,"Výhody","Provozní",null,null,{"$f":"IFERROR(SUM(Výdaje[[#This Row],[Rozpočet]]-Výdaje[[#This Row],[Skutečnost]]), \"\")","v":0},{"$f":"IFERROR(SUM(Výdaje[[#This Row],[Rozdíl (Kč)]]/Výdaje[[#This Row],[Rozpočet]]),\"\")","v":""}]
[null,"Zásoby","Provozní",null,null,{"$f":"IFERROR(SUM(Výdaje[[#This Row],[Rozpočet]]-Výdaje[[#This Row],[Skutečnost]]), \"\")","v":0},{"$f":"IFERROR(SUM(Výdaje[[#This Row],[Rozdíl (Kč)]]/Výdaje[[#This Row],[Rozpočet]]),\"\")","v":""}]
[null,"Poštovné","Provozní",null,null,{"$f":"IFERROR(SUM(Výdaje[[#This Row],[Rozpočet]]-Výdaje[[#This Row],[Skutečnost]]), \"\")","v":0},{"$f":"IFERROR(SUM(Výdaje[[#This Row],[Rozdíl (Kč)]]/Výdaje[[#This Row],[Rozpočet]]),\"\")","v":""}]
[null,"Nájem nebo hypotéka","Provozní",null,null,{"$f":"IFERROR(SUM(Výdaje[[#This Row],[Rozpočet]]-Výdaje[[#This Row],[Skutečnost]]), \"\")","v":0},{"$f":"IFERROR(SUM(Výdaje[[#This Row],[Rozdíl (Kč)]]/Výdaje[[#This Row],[Rozpočet]]),\"\")","v":""}]
[null,"Prodejní náklady","Provozní",null,null,{"$f":"IFERROR(SUM(Výdaje[[#This Row],[Rozpočet]]-Výdaje[[#This Row],[Skutečnost]]), \"\")","v":0},{"$f":"IFERROR(SUM(Výdaje[[#This Row],[Rozdíl (Kč)]]/Výdaje[[#This Row],[Rozpočet]]),\"\")","v":""}]
[null,"Daně","Provozní",null,null,{"$f":"IFERROR(SUM(Výdaje[[#This Row],[Rozpočet]]-Výdaje[[#This Row],[Skutečnost]]), \"\")","v":0},{"$f":"IFERROR(SUM(Výdaje[[#This Row],[Rozdíl (Kč)]]/Výdaje[[#This Row],[Rozpočet]]),\"\")","v":""}]
[null,"Služby","Provozní",null,null,{"$f":"IFERROR(SUM(Výdaje[[#This Row],[Rozpočet]]-Výdaje[[#This Row],[Skutečnost]]), \"\")","v":0},{"$f":"IFERROR(SUM(Výdaje[[#This Row],[Rozdíl (Kč)]]/Výdaje[[#This Row],[Rozpočet]]),\"\")","v":""}]
[null,"Ostatní","Provozní",null,null,{"$f":"IFERROR(SUM(Výdaje[[#This Row],[Rozpočet]]-Výdaje[[#This Row],[Skutečnost]]), \"\")","v":0},{"$f":"IFERROR(SUM(Výdaje[[#This Row],[Rozdíl (Kč)]]/Výdaje[[#This Row],[Rozpočet]]),\"\")","v":""}]
[null,"Pojištění","Provozní",null,null,{"$f":"IFERROR(SUM(Výdaje[[#This Row],[Rozpočet]]-Výdaje[[#This Row],[Skutečnost]]), \"\")","v":0},{"$f":"IFERROR(SUM(Výdaje[[#This Row],[Rozdíl (Kč)]]/Výdaje[[#This Row],[Rozpočet]]),\"\")","v":""}]
[null,"Úroky","Provozní",null,null,{"$f":"IFERROR(SUM(Výdaje[[#This Row],[Rozpočet]]-Výdaje[[#This Row],[Skutečnost]]), \"\")","v":0},{"$f":"IFERROR(SUM(Výdaje[[#This Row],[Rozdíl (Kč)]]/Výdaje[[#This Row],[Rozpočet]]),\"\")","v":""}]
[null,"Telefon","Provozní",null,null,{"$f":"IFERROR(SUM(Výdaje[[#This Row],[Rozpočet]]-Výdaje[[#This Row],[Skutečnost]]), \"\")","v":0},{"$f":"IFERROR(SUM(Výdaje[[#This Row],[Rozdíl (Kč)]]/Výdaje[[#This Row],[Rozpočet]]),\"\")","v":""}]
[null,"Údržba a opravy","Provozní",null,null,{"$f":"IFERROR(SUM(Výdaje[[#This Row],[Rozpočet]]-Výdaje[[#This Row],[Skutečnost]]), \"\")","v":0},{"$f":"IFERROR(SUM(Výdaje[[#This Row],[Rozdíl (Kč)]]/Výdaje[[#This Row],[Rozpočet]]),\"\")","v":""}]
[null,"Právní poplatky","Provozní",null,null,{"$f":"IFERROR(SUM(Výdaje[[#This Row],[Rozpočet]]-Výdaje[[#This Row],[Skutečnost]]), \"\")","v":0},{"$f":"IFERROR(SUM(Výdaje[[#This Row],[Rozdíl (Kč)]]/Výdaje[[#This Row],[Rozpočet]]),\"\")","v":""}]
[null,"Odpisy","Provozní",null,null,{"$f":"IFERROR(SUM(Výdaje[[#This Row],[Rozpočet]]-Výdaje[[#This Row],[Skutečnost]]), \"\")","v":0},{"$f":"IFERROR(SUM(Výdaje[[#This Row],[Rozdíl (Kč)]]/Výdaje[[#This Row],[Rozpočet]]),\"\")","v":""}]
[null,"Doprava","Provozní",null,null,{"$f":"IFERROR(SUM(Výdaje[[#This Row],[Rozpočet]]-Výdaje[[#This Row],[Skutečnost]]), \"\")","v":0},{"$f":"IFERROR(SUM(Výdaje[[#This Row],[Rozdíl (Kč)]]/Výdaje[[#This Row],[Rozpočet]]),\"\")","v":""}]
[null,"Skladování","Provozní",null,null,{"$f":"IFERROR(SUM(Výdaje[[#This Row],[Rozpočet]]-Výdaje[[#This Row],[Skutečnost]]), \"\")","v":0},{"$f":"IFERROR(SUM(Výdaje[[#This Row],[Rozdíl (Kč)]]/Výdaje[[#This Row],[Rozpočet]]),\"\")","v":""}]
[null,"Obchod","Osobní",null,null,{"$f":"IFERROR(SUM(Výdaje[[#This Row],[Rozpočet]]-Výdaje[[#This Row],[Skutečnost]]), \"\")","v":0},{"$f":"IFERROR(SUM(Výdaje[[#This Row],[Rozdíl (Kč)]]/Výdaje[[#This Row],[Rozpočet]]),\"\")","v":""}]
[null,"Prodejci","Osobní",null,null,{"$f":"IFERROR(SUM(Výdaje[[#This Row],[Rozpočet]]-Výdaje[[#This Row],[Skutečnost]]), \"\")","v":0},{"$f":"IFERROR(SUM(Výdaje[[#This Row],[Rozdíl (Kč)]]/Výdaje[[#This Row],[Rozpočet]]),\"\")","v":""}]
[null,"Jiné","Osobní",null,null,{"$f":"IFERROR(SUM(Výdaje[[#This Row],[Rozpočet]]-Výdaje[[#This Row],[Skutečnost]]), \"\")","v":0},{"$f":"IFERROR(SUM(Výdaje[[#This Row],[Rozdíl (Kč)]]/Výdaje[[#This Row],[Rozpočet]]),\"\")","v":""}]
[null,"Celkové výdaje",null,{"$f":"IFERROR(SUM(Výdaje[Rozpočet]), \"\")","v":0},{"$f":"IFERROR(SUM(Výdaje[Skutečnost]), \"\")","v":0},{"$f":"IFERROR(SUM(Výdaje[Rozdíl (Kč)]), \"\")","v":0},{"$f":"IFERROR(SUM(Výdaje[[#Totals],[Rozdíl (Kč)]]/Výdaje[[#Totals],[Rozpočet]]),\"\")","v":""}]

{"sheet":"Kategorie","index":1,"n_rows":4,"n_cols":2,"rows_kept":4}
[null,"Vyhledávání kategorií"]
[null,"Kategorie"]
[null,"Provozní"]
[null,"Osobní"]